Workbook

Sheet ДОХОДЫ
C1: Приложение 5
C2: к решению
C3: Волгоградской городской Думы
C4: от________________ №_______
A6: Исполнение доходов бюджета по кодам видов доходов, подвидов,
A7: классификации операций сектора государственного управления, относящихся
A8: к доходам бюджета за 2011 год
A10: Код бюджетной классификации | B10: Наименование | C10: Утверждено по бюджету (тыс. руб.) | D10: Исполнено (тыс. руб.) | E10: % ис-полнения
A12: 1 | B12: 2 | C12: 3 | D12: 4 | E12: 5
A13: 8 50 00000 00 0000 000 | B13: Доходы бюджета -итого | C13: =C14+C47 -> 15026677.4 | D13: =D14+D47 -> 14328159.81 | E13: =D13/C13*100 -> 95.3514834
A14: 1 00 00000 00 0000 000 | B14: Налоговые и неналоговые доходы | C14: =C15+C26 -> 9011827.5 | D14: =D15+D26 -> 8841464.807 | E14: =D14/C14*100 -> 98.10956553
B15: Налоговые доходы | C15: =C16+C18+C21+C24+C25 -> 6764276.5 | D15: =D16+D18+D21+D24+D25 -> 6599896 | E15: =D15/C15*100 -> 97.56987314
A16: 1 01 00000 00 0000 000 | B16: Налоги на прибыль, доходы | C16: =C17 -> 4823400 | D16: =D17 -> 4819264.1 | E16: 99.91425343
A17: 1 01 02000 01 0000 110 | B17: Налог на доходы физических лиц | C17: 4823400 | D17: 4819264.1 | E17: 99.91425343
A18: 1 05 00000 00 0000 000 | B18: Налоги на совокупный доход | C18: =C19+C20 -> 734593 | D18: =D19+D20 -> 625646.9 | E18: 85.16918893
A19: 1 05 02000 02 0000 110 | B19: Единый налог на вмененный доход для отдельных видов деятельности | C19: 730619 | D19: 622031.6 | E19: 85.13761619
A20: 1 05 03000 01 0000 110 | B20: Единый сельскохозяйственный налог | C20: 3974 | D20: 3615.3 | E20: 90.97382989
A21: 1 06 00000 00 0000 000 | B21: Налоги на имущество | C21: =C22+C23 -> 886872.5 | D21: =D22+D23 -> 832681.3 | E21: 93.88962901
A22: 1 06 01000 00 0000 110 | B22: Налог на имущество физических лиц | C22: 55135.5 | D22: 55509.6 | E22: 100.6785102
A23: 1 06 06000 00 0000 110 | B23: Земельный налог | C23: 831737 | D23: 777171.7 | E23: 93.43959689
A24: 1 08 00000 00 0000 000 | B24: Государственная пошлина | C24: 319411 | D24: 322834 | E24: 101.07166
A25: 1 09 00000 00 0000 000 | B25: Задолженность и перерасчеты по отмененным налогам, сборам и иным обязательным платежам | C25: 0 | D25: -530.3
B26: Неналоговые доходы | C26: =C27+C36+C40+C41+C45+C46 -> 2247551 | D26: =D27+D36+D40+D41+D45+D46 -> 2241568.807 | E26: 99.73383505
A27: 1 11 00000 00 0000 000 | B27: Доходы от использования имущества, находящегося в государственной и муниципальной собственности | C27: 1438302 | D27: 1434019.984 | E27: 99.70228672
A28: 1 11 01000 00 0000 120 | B28: Доходы в виде прибыли, приходящейся на доли в уставных (складочных) капиталах хозяйственных товариществ и обществ, или дивидендов по акциям, принадлежащим Российской Федерации, субъектам Российской Федерации или муниципальным образованиям | C28: 3000 | D28: 2339 | E28: 77.96666667
A29: 1 11 02000 00 0000 120 | B29: Доходы от размещения средств бюджета | C29: 0 | D29: 2.2
A30: 1 11 05000 00 0000 120 | B30: Доходы, получаемые в виде арендной либо иной платы за передачу в возмездное пользование государственного и муниципального имущества (за исключением имущества бюджетных и автономных учреждений, а также имущества государственных и муниципальных унитарных предприятий, в том числе казенных) | C30: 1123540 | D30: 1090211.124 | E30: 97.0335835
A31: 1 11 05010 00 0000 120 | B31: Доходы, получаемые в виде арендной платы за земельные участки, государственная собственность на которые не разграничена, а также средства от продажи права на заключение договоров аренды указанных земельных участков | C31: 1096840 | D31: 1023665.955 | E31: 93.32864912
A32: 1 11 05020 00 0000 120 | B32: Доходы, получаемые в виде арендной платы за земли после разграничения государственной собственности на землю, а также средства от продажи права на заключение договоров аренды указанных земельных участков (за исключением земельных участков бюджетных и автономных учреждений) | C32: 25000 | D32: 26248.068 | E32: 104.992272
A33: 111 05030 00 0000 120 | B33: Доходы от сдачи в аренду имущества, находящегося в оперативном управлении органов государственной власти, органов местного самоуправления, государственных внебюджетных фондов и созданных ими учреждений (за исключением имущества бюджетных и автономных учреждений) | C33: 1700 | D33: 40297.1 | E33: 2370.417647
A34: 1 11 07000 00 0000 120 | B34: Платежи от государственных и муниципальных унитарных предприятий | C34: 28866 | D34: 23718.6 | E34: 82.16794845
A35: 1 11 09000 00 0000 120 | B35: Прочие доходы от использования имущества и прав, находящихся в государственной и муниципальной собственности (за исключением имущества автономных учреждений, а также имущества государственных и муниципальных унитарных предприятий, в том числе казенных) | C35: 282896 | D35: 317749.1 | E35: 112.3201106
A36: 1 12 00000 00 0000 000 | B36: Плата за пользование природными ресурсами | C36: =C38+C39 -> 46572 | D36: =D38+D39 -> 44550 | E36: 95.65833548
B37: в том числе:
A38: 1 12 01000 01 0000 120 | B38: Плата за негативное воздействие на окружающую среду | C38: 46246 | D38: 44550 | E38: 96.3326558
A39: 1 12 05000 00 0000 120 | B39: Плата за пользование водными объектами | C39: 326 | D39: 0 | E39: 0
A40: 1 13 00000 00 0000 000 | B40: Доходы от оказания платных услуг и компенсации затрат государства | C40: 63252 | D40: 72902.8 | E40: 115.2576994
A41: 1 14 00000 00 0000 000 | B41: Доходы от продажи материальных и нематериальных активов | C41: =C42+C43+C44 -> 546780 | D41: =D42+D43+D44 -> 527975.223 | E41: 96.56081477
A42: 1 14 01000 00 0000 000 | B42: Доходы от продажи квартир | C42: 1049 | D42: 1741.013 | E42: 165.9688275
A43: 1 14 02000 00 0000 000 | B43: Доходы от реализации имущества, находящегося в государственной и муниципальной собственности (за исключением имущества автономных учреждений, а также имущества государственных и муниципальных унитарных предприятий, в том числе казенных) | C43: 358731 | D43: 411112.1 | E43: 114.6017768
A44: 1 14 06000 00 0000 430 | B44: Доходы от продажи земельных участков, находящихся в государственной и муниципальной собственности (за исключением земельных участков автономных учреждений) | C44: 187000 | D44: 115122.11 | E44: 61.56262567
A45: 1 16 00000 00 0000 000 | B45: Штрафы, санкции, возмещение ущерба | C45: 151717 | D45: 161401.4 | E45: 106.3832003
A46: 1 17 00000 00 0000 000 | B46: Прочие неналоговые доходы | C46: 928 | D46: 719.4 | E46: 77.52155172
A47: 2 00 00000 00 0000 000 | B47: Безвозмездные поступления | C47: 6014849.9 | D47: 5486695 | E47: 91.21915079
A50: Первый заместитель председателя
A51: Волгоградской городской Думы А.И. Мордвинцев
